bitfinex/quotes_BTCUSD_20241002
["timestamp","ask_amount","ask_price","bid_price","bid_amount"]
[1727906020652,0.329268,60950.0,60942.0,0.24623062]
[1727906020653,0.164087,60943.0,60942.0,0.24623062]
[1727906020894,0.21330442,60943.0,60942.0,0.24623062]
[1727906021157,0.164095,60940.0,60939.0,0.12623508]
[1727906022904,0.165095,60940.0,60939.0,0.12623508]
[1727906023640,0.166095,60940.0,60939.0,0.12623508]
[1727906026561,0.19182181,60940.0,60939.0,0.12623508]
[1727906027109,0.164098,60939.0,60938.0,0.29496908]
[1727906028735,0.165098,60939.0,60938.0,0.29496908]
[1727906029442,0.164098,60939.0,60938.0,0.168734]
[1727906029667,0.165098,60939.0,60938.0,0.29496908]
[1727906029882,0.166098,60939.0,60938.0,0.29496908]
[1727906030328,0.165098,60939.0,60938.0,0.29496908]
[1727906030551,0.166098,60939.0,60938.0,0.29496908]
[1727906031445,0.166098,60939.0,60938.0,0.093434]
[1727906031680,0.166098,60939.0,60938.0,0.001634]
[1727906032379,0.165098,60939.0,60938.0,0.001634]
[1727906032829,0.166098,60939.0,60938.0,0.001634]
[1727906033278,0.165098,60939.0,60938.0,0.001634]
[1727906033499,0.166098,60939.0,60938.0,0.001634]
[1727906033969,0.165098,60939.0,60938.0,0.001634]
[1727906034193,0.166098,60939.0,60938.0,0.001634]
[1727906034672,0.165098,60939.0,60938.0,0.001634]
[1727906035335,0.166098,60939.0,60938.0,0.001634]
[1727906036093,0.259398,60939.0,60938.0,0.001634]
[1727906037692,0.28512785,60939.0,60938.0,0.001634]
[1727906043840,0.33421363,60939.0,60938.0,0.001634]
[1727906044493,0.28512785,60939.0,60938.0,0.001634]
[1727906044971,0.33421363,60939.0,60938.0,0.001634]
[1727906045415,0.33429123,60939.0,60938.0,0.001634]
[1727906045640,0.38332295,60939.0,60938.0,0.001634]
[1727906045866,0.48332295,60939.0,60938.0,0.001634]
[1727906046088,0.43429123,60939.0,60938.0,0.001634]
[1727906046301,0.5079199,60939.0,60938.0,0.001634]
[1727906046515,0.43429123,60939.0,60938.0,0.001634]
[1727906046749,0.40856138,60939.0,60938.0,0.001634]
[1727906047195,0.48219005,60939.0,60938.0,0.001634]
[1727906047638,0.40856138,60939.0,60938.0,0.001634]
[1727906047857,0.40856138,60939.0,60938.0,0.329834]
[1727906048306,0.48219005,60939.0,60938.0,0.329834]
[1727906048555,0.40856138,60939.0,60938.0,0.329834]
[1727906049226,0.53127584,60939.0,60938.0,0.329834]
[1727906049462,0.61307584,60939.0,60938.0,0.329834]
[1727906049720,0.63780725,60939.0,60938.0,0.329834]
[1727906049909,0.51609279,60939.0,60938.0,0.329834]
[1727906050190,0.51509279,60939.0,60938.0,0.329834]
[1727906050424,0.51409279,60939.0,60938.0,0.329834]
[1727906050662,0.51809279,60939.0,60938.0,0.329834]
[1727906050884,0.49236138,60939.0,60938.0,0.329834]
[1727906051118,0.49736138,60939.0,60938.0,0.329834]
[1727906051549,0.49236138,60939.0,60938.0,0.329834]
[1727906051813,0.49736138,60939.0,60938.0,0.329834]
[1727906052482,0.49336138,60939.0,60938.0,0.329834]
[1727906052703,0.49936138,60939.0,60938.0,0.329834]
[1727906053647,0.52509347,60939.0,60938.0,0.329834]
[1727906055042,0.68828018,60939.0,60938.0,0.329834]
[1727906055259,0.84230418,60939.0,60938.0,0.329834]
[1727906055482,0.68828018,60939.0,60938.0,0.329834]
[1727906055696,0.67418347,60939.0,60938.0,0.329834]
[1727906056130,0.65677447,60939.0,60938.0,0.329834]
[1727906056363,0.78111852,60939.0,60938.0,0.329834]
[1727906056574,0.75738643,60939.0,60938.0,0.329834]
[1727906056785,0.85777242,60939.0,60938.0,0.329834]
[1727906057010,0.85077242,60939.0,60938.0,0.329834]
[1727906057223,0.71063837,60939.0,60938.0,0.329834]
[1727906057678,0.76356235,60939.0,60938.0,0.329834]
[1727906057899,1.01570235,60939.0,60938.0,0.329834]
[1727906058115,1.01770235,60939.0,60938.0,0.329834]
[1727906058342,1.01770234,60939.0,60938.0,0.329834]
[1727906058780,1.03846834,60939.0,60938.0,0.329834]
[1727906058997,1.01490234,60939.0,60938.0,0.329834]
[1727906059897,1.04063476,60939.0,60938.0,0.329834]
[1727906060577,1.20382147,60939.0,60938.0,0.329834]
[1727906061070,1.05651151,60939.0,60938.0,0.329834]
[1727906061715,1.05851151,60939.0,60938.0,0.329834]
[1727906065970,1.03277909,60939.0,60938.0,0.329834]
[1727906066638,1.19863721,60939.0,60938.0,0.329834]
[1727906066848,1.32487229,60939.0,60938.0,0.329834]
[1727906067087,1.15901417,60939.0,60938.0,0.329834]
[1727906067510,1.15301417,60939.0,60938.0,0.329834]
[1727906067954,1.16101417,60939.0,60938.0,0.329834]
[1727906068388,1.15401417,60939.0,60938.0,0.329834]
[1727906068648,1.16301417,60939.0,60938.0,0.329834]
[1727906068863,1.03677909,60939.0,60938.0,0.329834]
[1727906069084,1.06251271,60939.0,60938.0,0.329834]
[1727906069721,1.11700271,60939.0,60938.0,0.329834]
[1727906069930,0.52118171,60939.0,60938.0,0.329834]
[1727906070142,0.88829471,60939.0,60938.0,0.329834]
[1727906070361,0.725108,60939.0,60938.0,0.329834]
[1727906072063,1.694965,60938.0,60937.0,0.001634]
[1727906072277,2.48484238,60938.0,60937.0,0.001634]
[1727906072513,2.37223238,60938.0,60937.0,0.001634]
[1727906072992,2.53541909,60938.0,60937.0,0.001634]
[1727906073389,2.38023238,60938.0,60937.0,0.001634]
[1727906073604,2.38723238,60938.0,60937.0,0.001634]
[1727906073818,2.53276906,60938.0,60937.0,0.001634]
[1727906074032,2.15390538,60938.0,60937.0,0.001634]
[1727906074282,2.30144206,60938.0,60937.0,0.001634]
[1727906074499,2.15390538,60938.0,60937.0,0.001634]
[1727906074713,2.30344206,60938.0,60937.0,0.001634]
[1727906075359,2.31109209,60938.0,60937.0,0.001634]
[1727906075596,2.29552268,60938.0,60937.0,0.001634]
[1727906075809,2.30252268,60938.0,60937.0,0.001634]
[1727906076026,2.29552268,60938.0,60937.0,0.001634]
[1727906076241,2.14790538,60938.0,60937.0,0.001634]
[1727906076508,2.15390538,60938.0,60937.0,0.001634]
[1727906076719,2.31709209,60938.0,60937.0,0.001634]
[1727906077862,2.18441609,60938.0,60937.0,0.001634]
[1727906082108,2.01922938,60938.0,60937.0,0.001634]
[1727906082331,2.02122938,60938.0,60937.0,0.001634]
[1727906085785,2.01922938,60938.0,60937.0,0.001634]
[1727906088398,2.01922938,60938.0,60937.0,0.098634]
[1727906088855,2.01922938,60938.0,60937.0,0.180534]
[1727906090047,2.01222938,60938.0,60937.0,0.180534]
[1727906090301,2.00622938,60938.0,60937.0,0.180534]
[1727906090543,2.03396052,60938.0,60937.0,0.181534]
[1727906090816,2.03296052,60938.0,60937.0,0.180534]
[1727906091047,2.03396052,60938.0,60937.0,0.181534]
[1727906091299,2.03496052,60938.0,60937.0,0.182534]
[1727906092302,2.00922938,60938.0,60937.0,0.182534]
[1727906092556,2.15705407,60938.0,60937.0,0.182534]
[1727906095523,2.00922938,60938.0,60937.0,0.182534]
[1727906095773,1.98579682,60938.0,60937.0,0.182534]
[1727906097553,1.98743282,60938.0,60937.0,0.182534]
[1727906101179,1.961702,60938.0,60937.0,0.182534]
[1727906104254,2.11047897,60938.0,60937.0,0.182534]
[1727906105522,2.06012423,60938.0,60937.0,0.182534]
[1727906105725,1.961702,60938.0,60937.0,0.182534]
[1727906107450,2.06010728,60938.0,60937.0,0.182534]
[1727906107711,2.06010151,60938.0,60937.0,0.182534]
[1727906107968,2.06010151,60938.0,60937.0,0.30876908]
[1727906108902,1.96010151,60938.0,60937.0,0.30876908]
[1727906109156,1.79600051,60938.0,60937.0,0.30876908]
[1727906109358,1.697601,60938.0,60937.0,0.30876908]
[1727906110411,1.861702,60938.0,60937.0,0.30876908]
[1727906110649,1.697601,60938.0,60937.0,0.30876908]
[1727906110885,1.697601,60938.0,60937.0,0.47287208]
[1727906112988,1.72232851,60938.0,60937.0,0.47187208]
[1727906113243,1.697601,60938.0,60937.0,0.47287208]
[1727906113507,1.695601,60938.0,60937.0,0.47187208]
[1727906113762,1.695601,60938.0,60937.0,0.49587208]
[1727906115097,1.696601,60938.0,60937.0,0.50487208]
[1727906115324,1.696601,60938.0,60937.0,0.50687208]
[1727906117582,1.596601,60938.0,60937.0,0.50687208]
[1727906118165,1.596601,60938.0,60937.0,0.67005879]
[1727906118401,1.596601,60938.0,60937.0,0.99826879]
[1727906118998,1.595601,60938.0,60937.0,0.98926879]
[1727906119401,1.594601,60938.0,60937.0,0.98726879]
[1727906119604,1.594601,60938.0,60937.0,1.00126879]
[1727906119996,1.594601,60938.0,60937.0,1.01026879]
[1727906120180,1.594601,60938.0,60937.0,1.02426879]
[1727906121235,1.594601,60938.0,60937.0,1.01526879]
[1727906121440,1.595601,60938.0,60937.0,1.02926879]
[1727906122099,1.595601,60938.0,60937.0,1.03352273]
[1727906122309,0.99183797,60938.0,60937.0,1.03352273]
[1727906126005,0.48807494,60938.0,60937.0,1.13852273]
[1727906137919,0.48807494,60938.0,60937.0,1.13652273]
[1727906138118,0.48807494,60938.0,60937.0,1.13852273]
[1727906139129,0.48807494,60938.0,60937.0,1.15576462]
[1727906142574,0.48807494,60938.0,60937.0,1.15586134]
[1727906143008,0.48807494,60938.0,60937.0,1.15586133]
[1727906145712,0.48807494,60938.0,60937.0,1.13852273]
[1727906145924,0.48807494,60938.0,60937.0,1.15588564]
[1727906149093,0.48807494,60938.0,60937.0,1.13852273]
[1727906149312,0.48807494,60938.0,60937.0,1.155914]
[1727906149540,0.48807494,60938.0,60937.0,1.18863458]
[1727906153041,0.48807494,60938.0,60937.0,1.18363458]
[1727906153292,0.48807494,60938.0,60937.0,1.18863458]
[1727906159036,0.48807494,60938.0,60937.0,1.13852273]
[1727906159282,0.48807494,60938.0,60937.0,1.18921771]
[1727906160251,0.48807494,60938.0,60937.0,1.23833793]
[1727906161477,0.48807494,60938.0,60937.0,1.22083373]
[1727906161725,0.48807494,60938.0,60937.0,1.20526506]
[1727906161969,0.48807494,60938.0,60937.0,1.23846715]
[1727906162231,0.48807494,60938.0,60937.0,1.23845803]
[1727906162691,0.48807494,60938.0,60937.0,1.18934693]
[1727906162926,0.48807494,60938.0,60937.0,1.17172602]
[1727906163168,0.48807494,60938.0,60937.0,1.1893534]
[1727906164645,0.48807494,60938.0,60937.0,1.15617196]
[1727906164893,0.48807494,60938.0,60937.0,1.26309488]
[1727906165161,0.48807494,60938.0,60937.0,1.18940426]
[1727906165402,0.48807494,60938.0,60937.0,1.2630768]
[1727906165639,0.48807494,60938.0,60937.0,1.18940426]
[1727906167549,0.48807494,60938.0,60937.0,1.31592141]
[1727906168030,0.48807494,60938.0,60937.0,1.31593603]
[1727906168505,0.48807494,60938.0,60937.0,1.21770112]
[1727906168978,0.48807494,60938.0,60937.0,1.31593603]
[1727906171924,0.24623062,60953.0,60952.0,0.189063]
[1727906172165,0.24623062,60953.0,60952.0,0.53489566]
[1727906172646,0.0941,60953.0,60952.0,0.53489566]
[1727906172930,0.1198175,60953.0,60952.0,0.53489566]
[1727906173163,0.1208175,60953.0,60952.0,0.66089566]
[1727906173412,0.0267175,60953.0,60952.0,0.82908237]
[1727906173649,0.0913,60958.0,60955.0,0.002]
[1727906173902,0.24623062,60960.0,60955.0,0.002]
[1727906173903,0.24623062,60960.0,60959.0,0.189044]
[1727906174145,0.000817,60961.0,60960.0,0.189041]
[1727906174364,0.000817,60961.0,60960.0,0.69801037]
[1727906174592,0.000817,60961.0,60960.0,0.68030771]
[1727906174815,0.000817,60961.0,60960.0,0.69790725]
[1727906175469,0.093317,60961.0,60960.0,0.69590725]
[1727906175690,0.093317,60961.0,60960.0,0.82414233]
[1727906175913,0.11903058,60961.0,60960.0,0.83814233]
[1727906176127,0.11903058,60961.0,60960.0,0.85214233]
[1727906176341,0.11903058,60961.0,60960.0,0.83454279]
[1727906177505,0.093317,60961.0,60960.0,0.83454279]
[1727906180467,0.093317,60961.0,60960.0,0.83869502]
[1727906182235,0.093317,60961.0,60960.0,0.83669502]
[1727906182665,0.000817,60961.0,60960.0,0.83869502]
[1727906182882,0.000817,60961.0,60960.0,0.91899502]
[1727906185844,0.000817,60961.0,60960.0,0.83669502]
[1727906187459,0.000817,60961.0,60960.0,0.93669502]
[1727906189036,0.000817,60961.0,60960.0,0.95435123]
[1727906189463,0.000817,60961.0,60960.0,0.95434779]
[1727906190325,0.000817,60961.0,60960.0,0.93669158]
[1727906190771,0.000817,60961.0,60960.0,0.95434779]
[1727906191215,0.000817,60961.0,60960.0,0.93669158]
[1727906191647,0.000817,60961.0,60960.0,0.9544069]
[1727906192328,0.000817,60961.0,60960.0,0.97211825]
[1727906192747,0.000817,60961.0,60960.0,0.84588317]
[1727906193186,0.000817,60961.0,60960.0,0.9564069]
[1727906193421,0.000817,60961.0,60960.0,0.97413077]
[1727906194102,0.000817,60961.0,60960.0,0.95641545]
[1727906194561,0.000817,60961.0,60960.0,1.13691545]
[1727906194819,0.000817,60961.0,60960.0,1.14187367]
[1727906195259,0.000817,60961.0,60960.0,1.1625511]
[1727906196364,0.000817,60961.0,60960.0,1.1675511]
[1727906201644,0.000817,60961.0,60960.0,1.16731216]
[1727906202067,0.000817,60961.0,60960.0,1.16731417]
[1727906202514,0.000817,60961.0,60960.0,1.16894817]
[1727906204972,0.000817,60963.0,60962.0,0.468336]
[1727906205187,0.000817,60963.0,60962.0,0.98220408]
[1727906205392,0.000817,60963.0,60962.0,1.00273266]
[1727906206043,0.000817,60972.0,60971.0,0.007]
[1727906206273,0.000817,60972.0,60971.0,1.02729374]
[1727906206473,0.0082311,60972.0,60971.0,1.02729374]
[1727906206685,0.000817,60972.0,60971.0,1.02729374]
[1727906207317,0.000817,60972.0,60971.0,1.04129374]
[1727906208832,0.000817,60972.0,60971.0,1.05529374]
[1727906209478,0.000817,60972.0,60971.0,1.02729374]
[1727906209689,0.000817,60972.0,60971.0,1.04129374]
[1727906209897,0.000817,60972.0,60971.0,1.05529374]
[1727906210345,0.000817,60972.0,60971.0,1.04129374]
[1727906210560,0.000817,60972.0,60971.0,1.05529374]
[1727906210983,0.000817,60972.0,60971.0,1.04129374]
[1727906211192,0.000817,60972.0,60971.0,1.05529374]
[1727906211409,0.000817,60972.0,60971.0,1.02077431]
[1727906211624,0.000817,60972.0,60971.0,1.04129632]
[1727906211846,0.000817,60972.0,60971.0,1.05529632]
[1727906212052,0.000817,60972.0,60971.0,1.02079747]
[1727906212259,0.000817,60972.0,60971.0,1.04136185]
[1727906212898,0.000817,60972.0,60971.0,1.05536185]
[1727906213311,0.000817,60972.0,60971.0,1.04136185]
[1727906213521,0.000817,60972.0,60971.0,1.05536185]
[1727906214475,0.000817,60972.0,60971.0,1.05958234]
[1727906214720,0.000817,60972.0,60971.0,1.02137428]
[1727906214935,0.000817,60972.0,60971.0,1.05966847]
[1727906216419,0.0938,60984.0,60980.0,0.188988]
[1727906216637,0.0938,60984.0,60980.0,0.94468398]
[1727906216834,0.000817,60985.0,60984.0,0.188977]
[1727906217041,0.000817,60985.0,60984.0,0.80634879]
[1727906217876,0.000817,60985.0,60984.0,0.82034879]
[1727906218513,0.02652065,60985.0,60984.0,0.82034879]
[1727906219608,0.02652065,60985.0,60984.0,0.92034879]
[1727906219812,0.000817,60985.0,60984.0,0.97293352]
[1727906220246,0.000817,60985.0,60984.0,0.94493352]
[1727906220457,0.000817,60985.0,60984.0,0.95893352]
[1727906220669,0.000817,60985.0,60984.0,0.97293352]
[1727906220872,0.000817,60985.0,60984.0,0.95511538]
[1727906221088,0.000817,60985.0,60984.0,0.97275203]
[1727906221289,0.000817,60985.0,60984.0,1.00740105]
[1727906221534,0.000817,60985.0,60984.0,0.98675078]
[1727906221754,0.000817,60985.0,60984.0,1.0073975]
[1727906222165,0.000817,60985.0,60984.0,0.88530111]
[1727906222372,0.000817,60985.0,60984.0,1.01153619]
[1727906222608,0.000817,60985.0,60984.0,0.88530111]
[1727906222829,0.000817,60985.0,60984.0,1.01153619]
[1727906223056,0.000817,60985.0,60984.0,0.88530111]
[1727906223272,0.000817,60985.0,60984.0,1.01153619]
[1727906223951,0.000817,60985.0,60984.0,0.88493404]
[1727906224192,0.000817,60985.0,60984.0,1.01116912]
[1727906224417,0.000817,60986.0,60985.0,0.376074]
[1727906224643,0.000817,60986.0,60985.0,0.90524324]
[1727906225904,0.000817,60986.0,60985.0,0.91924324]
[1727906226735,0.000817,60986.0,60985.0,0.93324324]
[1727906227192,0.000817,60986.0,60985.0,1.17947386]
[1727906227394,0.33793062,60996.0,60995.0,0.188947]
[1727906227611,0.33793062,60996.0,60995.0,0.68003371]
[1727906227851,0.0917,60996.0,60995.0,0.68003371]
[1727906229323,0.0917,60996.0,60995.0,0.90626879]
[1727906229737,0.0917,60996.0,60995.0,0.80626879]
[1727906230386,0.0917,60996.0,60995.0,0.82026879]
[1727906230802,0.0917,60996.0,60995.0,0.83426879]
[1727906231919,0.0256991,60997.0,60996.0,0.288945]
[1727906232132,0.0256991,60997.0,60996.0,0.78002171]
[1727906233222,0.0256991,60997.0,60996.0,0.79402171]
[1727906233428,0.0256991,60997.0,60996.0,0.80802171]
[1727906233643,0.0256991,60997.0,60996.0,0.79402171]
[1727906233851,0.0965,61005.0,60998.0,0.002]
[1727906234063,0.0965,61005.0,60998.0,0.68000571]
[1727906234738,0.0965,61005.0,60998.0,0.78000571]
[1727906234941,0.000817,61007.0,60999.0,0.170937]
[1727906235153,0.000817,61007.0,61006.0,0.188918]
[1727906235369,0.000817,61011.0,61010.0,0.165907]
[1727906235592,0.000817,61011.0,61010.0,0.90614879]
[1727906236262,0.000817,61011.0,61010.0,0.91114879]
[1727906236475,0.000817,61011.0,61010.0,0.92514879]
[1727906236676,0.000817,61011.0,61010.0,0.93914879]
[1727906238001,0.000817,61011.0,61010.0,0.92514879]
[1727906238420,0.000817,61011.0,61010.0,0.93914879]
[1727906238629,0.000817,61011.0,61010.0,0.94414879]
[1727906238836,0.0002,61019.0,61018.0,0.31312108]
[1727906239050,0.0002,61019.0,61018.0,0.80407779]
[1727906239730,0.0002,61019.0,61018.0,0.90407779]
[1727906239945,0.0002,61019.0,61018.0,0.91807779]
[1727906240383,0.0002,61019.0,61018.0,0.93707779]
[1727906240822,0.0002,61019.0,61018.0,0.95107779]
[1727906241031,0.0002,61019.0,61018.0,0.92507779]
[1727906241240,0.0002,61019.0,61018.0,0.91107779]
[1727906241455,0.0002,61019.0,61018.0,0.92507779]
[1727906241902,0.000817,61022.0,61021.0,0.288878]
[1727906242140,0.000817,61022.0,61021.0,0.78310136]
[1727906242337,0.000817,61022.0,61021.0,0.77982471]
[1727906242991,0.000817,61022.0,61021.0,0.79382471]
[1727906243197,0.000817,61022.0,61021.0,0.80782471]
[1727906243419,0.000817,61022.0,61021.0,0.89192471]
[1727906244267,0.000817,61033.0,61032.0,0.163848]
[1727906244544,0.000817,61033.0,61032.0,0.78296979]
[1727906244801,0.000817,61033.0,61032.0,0.80596979]
[1727906245567,0.000817,61033.0,61032.0,0.91996979]
[1727906246283,0.000817,61033.0,61032.0,0.93396979]
[1727906246530,0.000817,61033.0,61032.0,0.91996979]
[1727906247478,0.02649976,61033.0,61032.0,0.91996979]
[1727906247730,0.02649976,61033.0,61032.0,0.92496979]
[1727906248228,0.02649976,61033.0,61032.0,0.93896979]
[1727906248497,0.000817,61033.0,61032.0,0.93896979]
[1727906248751,0.000817,61033.0,61032.0,0.91996979]
[1727906249016,0.000817,61033.0,61032.0,0.93896979]
[1727906249258,0.000817,61033.0,61032.0,0.92496979]
[1727906250034,0.000817,61033.0,61032.0,0.93896979]
[1727906250812,0.000817,61033.0,61032.0,0.91096979]
[1727906251108,0.000817,61033.0,61032.0,0.92496979]
[1727906252120,0.000817,61042.0,61038.0,0.288832]
[1727906252374,0.000817,61042.0,61038.0,0.58019228]
[1727906252591,0.000817,61042.0,61038.0,0.90591379]
[1727906253638,0.000817,61042.0,61038.0,0.91891379]
[1727906255361,0.000817,61042.0,61038.0,0.79267871]
[1727906255640,0.1087198,61039.0,61038.0,0.79267871]
[1727906255902,0.1087198,61039.0,61038.0,0.91891379]
[1727906257127,0.1087198,61039.0,61038.0,0.606492]
[1727906257439,0.1087198,61039.0,61038.0,0.64572708]
[1727906257440,0.13440245,61039.0,61038.0,0.64572708]
[1727906257713,0.13440245,61039.0,61028.0,0.105]
[1727906257714,0.002,61031.0,61019.0,0.24623062]
[1727906257992,0.1,61038.0,61019.0,0.24623062]
[1727906257993,0.16588,61020.0,61019.0,0.24623062]
[1727906258249,0.16388,61020.0,61019.0,0.24623062]
[1727906258621,0.1692,61012.0,61011.0,0.24623062]
[1727906258625,0.333102,61012.0,61011.0,0.24623062]
[1727906258880,0.333102,61012.0,61011.0,0.57404062]
[1727906259158,0.34149457,61012.0,61011.0,0.32781]
[1727906260015,0.34249457,61012.0,61011.0,0.34181]
[1727906260192,0.34249457,61012.0,61011.0,0.32781]
[1727906260476,0.17959257,61012.0,61011.0,0.34081]
[1727906260711,0.34349457,61012.0,61011.0,0.34081]
[1727906260956,0.10299257,61012.0,61011.0,0.504714]
[1727906261836,0.10380857,61012.0,61011.0,0.504714]
[1727906262051,0.10480857,61012.0,61011.0,0.515714]
[1727906263622,0.01220857,61012.0,61011.0,0.70190071]
[1727906263858,0.003816,61012.0,61011.0,0.70190071]
[1727906266106,0.003816,61012.0,61011.0,0.515714]
[1727906272631,0.02950943,61012.0,61011.0,0.515714]
[1727906273564,0.03779535,61012.0,61011.0,0.515714]
[1727906274227,0.03779535,61012.0,61011.0,0.35181]
[1727906274454,0.19341143,61012.0,61011.0,0.35181]
[1727906274669,0.2017072,61012.0,61011.0,0.353442]
[1727906275142,0.1295052,61012.0,61011.0,0.353442]
[1727906275315,0.26771377,61012.0,61011.0,0.353442]
[1727906275520,0.10381177,61012.0,61011.0,0.353442]
[1727906277563,0.10581177,61012.0,61011.0,0.353442]
[1727906278956,0.13150803,61012.0,61011.0,0.353442]
[1727906281084,0.13150803,61012.0,61011.0,0.517346]
[1727906286148,0.03980803,61012.0,61011.0,0.517346]
[1727906286400,0.03780803,61012.0,61011.0,0.517346]
[1727906286643,0.02951226,61012.0,61011.0,0.517346]
[1727906294257,0.03809194,61012.0,61011.0,0.517346]
[1727906302578,0.08707251,61012.0,61011.0,0.517346]
[1727906303718,0.1115628,61012.0,61011.0,0.517346]
[1727906307661,0.03809194,61012.0,61011.0,0.517346]
[1727906308490,0.23935276,61012.0,61011.0,0.517346]
[1727906310342,0.33731391,61012.0,61011.0,0.517346]
[1727906312732,0.33788586,61012.0,61011.0,0.517346]
[1727906316347,0.23943253,61012.0,61011.0,0.517346]
[1727906317498,0.36255399,61012.0,61011.0,0.517346]
[1727906322140,0.36298308,61012.0,61011.0,0.517346]
[1727906323529,0.2398244,61012.0,61011.0,0.517346]
[1727906323980,0.21412814,61012.0,61011.0,0.517346]
[1727906326752,0.21431176,61012.0,61011.0,0.353442]
[1727906327010,0.21431176,61012.0,61011.0,0.517346]
[1727906327235,0.2400067,61012.0,61011.0,0.517346]
[1727906327683,0.5054087,61012.0,61011.0,0.353442]
[1727906327909,0.70277735,61012.0,61011.0,0.353442]
[1727906328585,0.67708241,61012.0,61011.0,0.353442]
[1727906328808,0.67508241,61012.0,61011.0,0.353442]
[1727906329030,0.52727289,61012.0,61011.0,0.353442]
[1727906329509,0.67506093,61012.0,61011.0,0.353442]
[1727906329734,0.47771376,61012.0,61011.0,0.353442]
[1727906330181,0.67506104,61012.0,61011.0,0.353442]
[1727906330621,0.75106104,61012.0,61011.0,0.353442]
[1727906331955,0.67506104,61012.0,61011.0,0.353442]
[1727906333734,0.67706104,61012.0,61011.0,0.353442]
[1727906335258,0.47971376,61012.0,61011.0,0.353442]
[1727906335917,0.62830486,61012.0,61011.0,0.353442]
[1727906336360,0.65627509,61012.0,61011.0,0.353442]
[1727906336577,0.73707509,61012.0,61011.0,0.353442]
[1727906336783,0.83707509,61012.0,61011.0,0.353442]
[1727906337266,0.83707509,61012.0,61011.0,0.329442]
[1727906337267,0.85122484,61012.0,61011.0,0.329442]
[1727906337474,0.85122484,61012.0,61011.0,0.337442]
[1727906337715,0.85322484,61012.0,61011.0,0.343442]
[1727906337927,0.85322484,61012.0,61011.0,0.335442]
[1727906338141,0.85222484,61012.0,61011.0,0.330442]
[1727906338373,0.85222484,61012.0,61011.0,0.329442]
[1727906338374,0.85122484,61012.0,61011.0,0.329442]
[1727906340100,0.85222484,61012.0,61011.0,0.329442]
[1727906340345,0.85088468,61012.0,61011.0,0.329442]
[1727906341016,0.85288468,61012.0,61011.0,0.329442]
[1727906341264,0.9089135,61012.0,61011.0,0.329442]
[1727906341955,0.85288468,61012.0,61011.0,0.329442]
[1727906343408,0.87858529,61012.0,61011.0,0.329442]
[1727906343620,1.04453076,61012.0,61011.0,0.329442]
[1727906344946,1.16058389,61012.0,61011.0,0.329442]
[1727906345173,0.87858529,61012.0,61011.0,0.329442]
[1727906347150,1.04444856,61012.0,61011.0,0.329442]
[1727906347373,1.5353476,61012.0,61011.0,0.329442]
[1727906347629,1.40527789,61012.0,61011.0,0.329442]
[1727906347841,1.16058389,61012.0,61011.0,0.329442]
[1727906348062,1.30420568,61012.0,61011.0,0.329442]
[1727906348287,1.58520428,61012.0,61011.0,0.001632]
[1727906348514,1.51624828,61012.0,61011.0,0.001632]
[1727906348733,1.52678699,61012.0,61011.0,0.001632]
[1727906349184,1.52478699,61012.0,61011.0,0.001632]
[1727906349672,1.53778699,61012.0,61011.0,0.003632]
[1727906350175,0.165912,61008.0,61007.0,0.001632]
[1727906350386,0.46833482,60999.0,60998.0,0.24623062]
[1727906350679,0.92682425,60999.0,60998.0,0.24623062]
[1727906350931,0.163958,60991.0,60983.0,0.32123062]
[1727906351162,0.165958,60991.0,60983.0,0.32123062]
[1727906351388,0.165958,60991.0,60980.0,0.24623062]
[1727906351389,0.002,60981.0,60980.0,0.24623062]
[1727906351626,0.17585613,60981.0,60980.0,0.24623062]
[1727906351837,0.17585613,60981.0,60972.0,0.1748]
[1727906351838,0.002,60977.0,60972.0,0.1748]
[1727906352058,0.164004,60974.0,60972.0,0.0762]
[1727906352337,0.164007,60973.0,60972.0,0.0762]
[1727906353015,0.17356819,60973.0,60972.0,0.0762]
[1727906353246,0.16602,60968.0,60967.0,0.0762]
[1727906353683,0.17574753,60968.0,60967.0,0.0762]
[1727906353911,0.164033,60963.0,60962.0,0.001634]
[1727906354129,0.328062,60965.0,60962.0,0.001634]
[1727906354346,0.17351234,60963.0,60962.0,0.001634]
[1727906354568,0.164033,60963.0,60962.0,0.001634]
[1727906354786,0.1737418,60963.0,60962.0,0.001634]
[1727906354998,0.0097088,60963.0,60962.0,0.001634]
[1727906355434,0.164031,60965.0,60962.0,0.001634]
[1727906355649,0.01148917,60963.0,60962.0,0.001634]
[1727906355862,0.002,60963.0,60962.0,0.001634]
[1727906356110,0.01149808,60963.0,60962.0,0.001634]
[1727906356319,0.002,60963.0,60962.0,0.001634]
[1727906356543,0.01249808,60963.0,60962.0,0.001634]
[1727906356746,0.003,60963.0,60962.0,0.001634]
[1727906356948,0.01249626,60963.0,60962.0,0.16567]
[1727906357164,0.004,60963.0,60962.0,0.001634]
[1727906357417,0.0297158,60963.0,60962.0,0.001634]
[1727906357628,0.04020884,60963.0,60962.0,0.001634]
[1727906357835,0.01449304,60963.0,60962.0,0.001634]
[1727906358683,0.01349304,60963.0,60962.0,0.001634]
[1727906358894,0.01349304,60963.0,60962.0,0.16567]
[1727906359104,0.01349304,60963.0,60962.0,0.001634]
[1727906359311,0.01449304,60963.0,60962.0,0.001634]
[1727906360873,0.04020904,60963.0,60962.0,0.001634]
[1727906363271,0.20424204,60963.0,60962.0,0.001634]
[1727906363487,0.04020904,60963.0,60962.0,0.001634]
[1727906365022,0.20424204,60963.0,60962.0,0.001634]
[1727906367562,0.04020904,60963.0,60962.0,0.001634]
[1727906367797,0.20424204,60963.0,60962.0,0.001634]
[1727906368050,0.04020904,60963.0,60962.0,0.001634]
[1727906369605,0.20424204,60963.0,60962.0,0.001634]
[1727906373376,0.20224204,60963.0,60962.0,0.001634]
[1727906373818,0.20324204,60963.0,60962.0,0.001634]
[1727906374038,0.20224204,60963.0,60962.0,0.001634]
[1727906374276,0.20324204,60963.0,60962.0,0.001634]
[1727906374512,0.20324204,60963.0,60962.0,0.000634]
[1727906374513,0.20185242,60963.0,60962.0,0.000634]
[1727906374715,0.20085242,60963.0,60962.0,0.000634]
[1727906375141,0.20185242,60963.0,60962.0,0.000634]
[1727906376910,0.17613642,60963.0,60962.0,0.000634]
[1727906379915,0.17552604,60963.0,60962.0,0.000634]
[1727906380132,0.20185427,60963.0,60962.0,0.000634]
[1727906383068,0.20124389,60963.0,60962.0,0.000634]